Workbook

Sheet Лист1

Sheet Лист2
A1: =MATCH("Наименование банка",Лист3!B:B,) -> 69 | B1: =INDEX(Лист3!B:B,$A1) -> Наименование банка | C1: =INDEX(Лист3!C:C,$A1) -> Координаты | D1: =INDEX(Лист3!D:D,$A1) -> Пок. | E1: =INDEX(Лист3!E:E,$A1) -> Прод. | F1: =INDEX(Лист3!F:F,$A1) -> Ком. | G1: =INDEX(Лист3!G:G,$A1) -> Сумма. | H1: =INDEX(Лист3!H:H,$A1) -> Время. | I1: =INDEX(Лист3!I:I,$A1) -> Дополнительная информация
A3: =ROW(A1)*5+A$1-3 -> 71 | B3: =INDEX(Лист3!B:B,$A3) -> ООО КБ "ФПК" оквку № 24 "Семёновская" | C3: =INDEX(Лист3!C:C,$A3)&"" -> м. Семёновская | D3: =IFERROR(IFERROR(--(INDEX(Лист3!D:D,$A3)&""),--SUBSTITUTE(INDEX(Лист3!D:D,$A3)&"",".",",")),"") -> 77.1 | E3: =IFERROR(IFERROR(--(INDEX(Лист3!E:E,$A3)&""),--SUBSTITUTE(INDEX(Лист3!E:E,$A3)&"",".",",")),"") -> 79 | F3: =INDEX(Лист3!F:F,$A3) -> Нет | G3: =INDEX(Лист3!G:G,$A3) -> 10000 | H3: =INDEX(Лист3!H:H,$A3) -> 09:33:01 | I3: =INDEX(Лист3!I:I,$A3) -> (8495)365 02 00; (8967)248 88 32ул. Щербаковская, д. 5Партизанская, Семёновская
A4: =ROW(A2)*5+A$1-3 -> 76 | B4: =INDEX(Лист3!B:B,$A4) -> ООО КБ "ФПК" оквку № 24 "Семёновская" | C4: =INDEX(Лист3!C:C,$A4)&"" -> м. Семёновская | D4: =IFERROR(IFERROR(--(INDEX(Лист3!D:D,$A4)&""),--SUBSTITUTE(INDEX(Лист3!D:D,$A4)&"",".",",")),"") -> 77.1 | E4: =IFERROR(IFERROR(--(INDEX(Лист3!E:E,$A4)&""),--SUBSTITUTE(INDEX(Лист3!E:E,$A4)&"",".",",")),"") -> 79 | F4: =INDEX(Лист3!F:F,$A4) -> Нет | G4: =INDEX(Лист3!G:G,$A4) -> 20000 | H4: =INDEX(Лист3!H:H,$A4) -> 09:33:01 | I4: =INDEX(Лист3!I:I,$A4) -> (8495)365 02 00; (8967)248 88 32ул. Щербаковская, д. 5Партизанская, Семёновская
A5: 81 | B5: =INDEX(Лист3!B:B,$A5) -> АО БАНК "ТГБ" оквку "м. Кропоткинская, Гоголевский бульвар, д. 2" | C5: =INDEX(Лист3!C:C,$A5)&"" -> м. Кропоткинская | D5: =IFERROR(IFERROR(--(INDEX(Лист3!D:D,$A5)&""),--SUBSTITUTE(INDEX(Лист3!D:D,$A5)&"",".",",")),"") -> 77.5099 | E5: =IFERROR(IFERROR(--(INDEX(Лист3!E:E,$A5)&""),--SUBSTITUTE(INDEX(Лист3!E:E,$A5)&"",".",",")),"") -> 78.1401 | F5: =INDEX(Лист3!F:F,$A5) -> Нет | G5: =INDEX(Лист3!G:G,$A5) -> 1000 | H5: =INDEX(Лист3!H:H,$A5) -> 09:33:00 | I5: =INDEX(Лист3!I:I,$A5) -> (8963)999 11 68; (8963)999 11 83Бульвар Гоголевский, д. 2/18/1, стр. 3Кропоткинская
A6: 86 | B6: =INDEX(Лист3!B:B,$A6) -> АО БАНК "ТГБ" оквку "м. Кропоткинская, Гоголевский бульвар, д. 2" | C6: =INDEX(Лист3!C:C,$A6)&"" -> м. Кропоткинская | D6: =IFERROR(IFERROR(--(INDEX(Лист3!D:D,$A6)&""),--SUBSTITUTE(INDEX(Лист3!D:D,$A6)&"",".",",")),"") -> 77.5099 | E6: =IFERROR(IFERROR(--(INDEX(Лист3!E:E,$A6)&""),--SUBSTITUTE(INDEX(Лист3!E:E,$A6)&"",".",",")),"") -> 78.1401 | F6: =INDEX(Лист3!F:F,$A6) -> Нет | G6: =INDEX(Лист3!G:G,$A6) -> 10000 | H6: =INDEX(Лист3!H:H,$A6) -> 09:33:00 | I6: =INDEX(Лист3!I:I,$A6) -> (8963)999 11 68; (8963)999 11 83Бульвар Гоголевский, д. 2/18/1, стр. 3Кропоткинская
A7: 91 | B7: =INDEX(Лист3!B:B,$A7) -> АО БАНК "ТГБ" оквку "м. Кропоткинская, Гоголевский бульвар, д. 2" | C7: =INDEX(Лист3!C:C,$A7)&"" -> м. Кропоткинская | D7: =IFERROR(IFERROR(--(INDEX(Лист3!D:D,$A7)&""),--SUBSTITUTE(INDEX(Лист3!D:D,$A7)&"",".",",")),"") -> 77.5099 | E7: =IFERROR(IFERROR(--(INDEX(Лист3!E:E,$A7)&""),--SUBSTITUTE(INDEX(Лист3!E:E,$A7)&"",".",",")),"") -> 78.1401 | F7: =INDEX(Лист3!F:F,$A7) -> Нет | G7: =INDEX(Лист3!G:G,$A7) -> 30000 | H7: =INDEX(Лист3!H:H,$A7) -> 09:33:00 | I7: =INDEX(Лист3!I:I,$A7) -> (8963)999 11 68; (8963)999 11 83Бульвар Гоголевский, д. 2/18/1, стр. 3Кропоткинская
A8: 96 | B8: =INDEX(Лист3!B:B,$A8) -> КБ "РИАЛ-КРЕДИТ" (ООО) оквку "Большая Тульская" | C8: =INDEX(Лист3!C:C,$A8)&"" -> м-н "12 месяцев" | D8: =IFERROR(IFERROR(--(INDEX(Лист3!D:D,$A8)&""),--SUBSTITUTE(INDEX(Лист3!D:D,$A8)&"",".",",")),"") -> 77.51 | E8: =IFERROR(IFERROR(--(INDEX(Лист3!E:E,$A8)&""),--SUBSTITUTE(INDEX(Лист3!E:E,$A8)&"",".",",")),"") -> 78.7 | F8: =INDEX(Лист3!F:F,$A8) -> Нет | G8: =INDEX(Лист3!G:G,$A8) -> 10000 | H8: =INDEX(Лист3!H:H,$A8) -> 09:33:00 | I8: =INDEX(Лист3!I:I,$A8) -> (916)759 09 46; (495)434 97 79ул. Большая Тульская, д. 2
A9: 101 | B9: =INDEX(Лист3!B:B,$A9) -> КБ "РИАЛ-КРЕДИТ" (ООО) оквку "Большая Тульская" | C9: =INDEX(Лист3!C:C,$A9)&"" -> м-н "12 месяцев" | D9: =IFERROR(IFERROR(--(INDEX(Лист3!D:D,$A9)&""),--SUBSTITUTE(INDEX(Лист3!D:D,$A9)&"",".",",")),"") -> 77.51 | E9: =IFERROR(IFERROR(--(INDEX(Лист3!E:E,$A9)&""),--SUBSTITUTE(INDEX(Лист3!E:E,$A9)&"",".",",")),"") -> 78.7 | F9: =INDEX(Лист3!F:F,$A9) -> Нет | G9: =INDEX(Лист3!G:G,$A9) -> 20000 | H9: =INDEX(Лист3!H:H,$A9) -> 09:33:00 | I9: =INDEX(Лист3!I:I,$A9) -> (916)759 09 46; (495)434 97 79ул. Большая Тульская, д. 2
A10: 106 | B10: =INDEX(Лист3!B:B,$A10) -> ООО ИКБ "ЛОГОС" оквку "Ленинский 66" | C10: =INDEX(Лист3!C:C,$A10)&"" ->  | D10: =IFERROR(IFERROR(--(INDEX(Лист3!D:D,$A10)&""),--SUBSTITUTE(INDEX(Лист3!D:D,$A10)&"",".",",")),"") -> 77.5 | E10: =IFERROR(IFERROR(--(INDEX(Лист3!E:E,$A10)&""),--SUBSTITUTE(INDEX(Лист3!E:E,$A10)&"",".",",")),"") -> 78.5 | F10: =INDEX(Лист3!F:F,$A10) -> Нет | G10: =INDEX(Лист3!G:G,$A10) -> 1000 | H10: =INDEX(Лист3!H:H,$A10) -> 09:32:59 | I10: =INDEX(Лист3!I:I,$A10) -> (499)133 43 45Ленинский проспект, д. 66Академическая, Университет
A11: 111 | B11: =INDEX(Лист3!B:B,$A11) -> ООО ИКБ "ЛОГОС" оквку "Ленинский 66" | C11: =INDEX(Лист3!C:C,$A11)&"" ->  | D11: =IFERROR(IFERROR(--(INDEX(Лист3!D:D,$A11)&""),--SUBSTITUTE(INDEX(Лист3!D:D,$A11)&"",".",",")),"") -> 77.7 | E11: =IFERROR(IFERROR(--(INDEX(Лист3!E:E,$A11)&""),--SUBSTITUTE(INDEX(Лист3!E:E,$A11)&"",".",",")),"") -> 78.5 | F11: =INDEX(Лист3!F:F,$A11) -> Нет | G11: =INDEX(Лист3!G:G,$A11) -> 10000 | H11: =INDEX(Лист3!H:H,$A11) -> 09:32:59 | I11: =INDEX(Лист3!I:I,$A11) -> (499)133 43 45Ленинский проспект, д. 66Академическая, Университет
A12: 116 | B12: =INDEX(Лист3!B:B,$A12) -> ООО ИКБ "ЛОГОС" оквку "Ленинский 66" | C12: =INDEX(Лист3!C:C,$A12)&"" ->  | D12: =IFERROR(IFERROR(--(INDEX(Лист3!D:D,$A12)&""),--SUBSTITUTE(INDEX(Лист3!D:D,$A12)&"",".",",")),"") -> 77.7 | E12: =IFERROR(IFERROR(--(INDEX(Лист3!E:E,$A12)&""),--SUBSTITUTE(INDEX(Лист3!E:E,$A12)&"",".",",")),"") -> 78.5 | F12: =INDEX(Лист3!F:F,$A12) -> Нет | G12: =INDEX(Лист3!G:G,$A12) -> 100000 | H12: =INDEX(Лист3!H:H,$A12) -> 09:32:59 | I12: =INDEX(Лист3!I:I,$A12) -> (499)133 43 45Ленинский проспект, д. 66Академическая, Университет
A13: 121 | B13: =INDEX(Лист3!B:B,$A13) -> АО "Гринкомбанк" оквку "Медведково" | C13: =INDEX(Лист3!C:C,$A13)&"" -> м. Медведково | D13: =IFERROR(IFERROR(--(INDEX(Лист3!D:D,$A13)&""),--SUBSTITUTE(INDEX(Лист3!D:D,$A13)&"",".",",")),"") -> 77.7099 | E13: =IFERROR(IFERROR(--(INDEX(Лист3!E:E,$A13)&""),--SUBSTITUTE(INDEX(Лист3!E:E,$A13)&"",".",",")),"") ->  | F13: =INDEX(Лист3!F:F,$A13) -> Нет | G13: =INDEX(Лист3!G:G,$A13) -> 5001 | H13: =INDEX(Лист3!H:H,$A13) -> 09:32:58 | I13: =INDEX(Лист3!I:I,$A13) -> (8985)430 04 07ул. Широкая, владение 11АМедведково
A14: 126 | B14: =INDEX(Лист3!B:B,$A14) -> АО "Гринкомбанк" оквку "Медведково" | C14: =INDEX(Лист3!C:C,$A14)&"" -> м. Медведково | D14: =IFERROR(IFERROR(--(INDEX(Лист3!D:D,$A14)&""),--SUBSTITUTE(INDEX(Лист3!D:D,$A14)&"",".",",")),"") -> 77.7099 | E14: =IFERROR(IFERROR(--(INDEX(Лист3!E:E,$A14)&""),--SUBSTITUTE(INDEX(Лист3!E:E,$A14)&"",".",",")),"") ->  | F14: =INDEX(Лист3!F:F,$A14) -> Нет | G14: =INDEX(Лист3!G:G,$A14) -> 20000 | H14: =INDEX(Лист3!H:H,$A14) -> 09:32:58 | I14: =INDEX(Лист3!I:I,$A14) -> (8985)430 04 07ул. Широкая, владение 11АМедведково
A15: 131 | B15: =INDEX(Лист3!B:B,$A15) -> КБ "РИАЛ-КРЕДИТ" (ООО) оквку "Митинская" | C15: =INDEX(Лист3!C:C,$A15)&"" ->  | D15: =IFERROR(IFERROR(--(INDEX(Лист3!D:D,$A15)&""),--SUBSTITUTE(INDEX(Лист3!D:D,$A15)&"",".",",")),"") -> 77.7 | E15: =IFERROR(IFERROR(--(INDEX(Лист3!E:E,$A15)&""),--SUBSTITUTE(INDEX(Лист3!E:E,$A15)&"",".",",")),"") -> 78.2 | F15: =INDEX(Лист3!F:F,$A15) -> Нет | G15: =INDEX(Лист3!G:G,$A15) -> 1000 | H15: =INDEX(Лист3!H:H,$A15) -> 09:32:58 | I15: =INDEX(Лист3!I:I,$A15) -> (8925)929 61 33; (8925)929 61 33ул. Митинская, дом 36, корп. 2Митино
A16: 136 | B16: =INDEX(Лист3!B:B,$A16) -> КБ "РИАЛ-КРЕДИТ" (ООО) оквку "Митинская" | C16: =INDEX(Лист3!C:C,$A16)&"" ->  | D16: =IFERROR(IFERROR(--(INDEX(Лист3!D:D,$A16)&""),--SUBSTITUTE(INDEX(Лист3!D:D,$A16)&"",".",",")),"") -> 77.7 | E16: =IFERROR(IFERROR(--(INDEX(Лист3!E:E,$A16)&""),--SUBSTITUTE(INDEX(Лист3!E:E,$A16)&"",".",",")),"") -> 78.2 | F16: =INDEX(Лист3!F:F,$A16) -> Нет | G16: =INDEX(Лист3!G:G,$A16) -> 5000 | H16: =INDEX(Лист3!H:H,$A16) -> 09:32:58 | I16: =INDEX(Лист3!I:I,$A16) -> (8925)929 61 33; (8925)929 61 33ул. Митинская, дом 36, корп. 2Митино
A17: 141 | B17: =INDEX(Лист3!B:B,$A17) -> ООО КБ "Стар Альянс" оквку № 20 | C17: =INDEX(Лист3!C:C,$A17)&"" ->  | D17: =IFERROR(IFERROR(--(INDEX(Лист3!D:D,$A17)&""),--SUBSTITUTE(INDEX(Лист3!D:D,$A17)&"",".",",")),"") -> 77.2 | E17: =IFERROR(IFERROR(--(INDEX(Лист3!E:E,$A17)&""),--SUBSTITUTE(INDEX(Лист3!E:E,$A17)&"",".",",")),"") -> 79.3 | F17: =INDEX(Лист3!F:F,$A17) -> Нет | G17: =INDEX(Лист3!G:G,$A17) -> 10000 | H17: =INDEX(Лист3!H:H,$A17) -> 09:32:58 | I17: =INDEX(Лист3!I:I,$A17) -> (8968)771 42 42; (8968)771 43 43ул. Маршала Бирюзова, д. 16Октябрьское поле
A18: 146 | B18: =INDEX(Лист3!B:B,$A18) -> ООО КБ "Стар Альянс" оквку № 20 | C18: =INDEX(Лист3!C:C,$A18)&"" ->  | D18: =IFERROR(IFERROR(--(INDEX(Лист3!D:D,$A18)&""),--SUBSTITUTE(INDEX(Лист3!D:D,$A18)&"",".",",")),"") -> 77.2 | E18: =IFERROR(IFERROR(--(INDEX(Лист3!E:E,$A18)&""),--SUBSTITUTE(INDEX(Лист3!E:E,$A18)&"",".",",")),"") -> 79.3 | F18: =INDEX(Лист3!F:F,$A18) -> Нет | G18: =INDEX(Лист3!G:G,$A18) -> 50000 | H18: =INDEX(Лист3!H:H,$A18) -> 09:32:58 | I18: =INDEX(Лист3!I:I,$A18) -> (8968)771 42 42; (8968)771 43 43ул. Маршала Бирюзова, д. 16Октябрьское поле
A19: 151 | B19: =INDEX(Лист3!B:B,$A19) -> КБ "ДС-Банк" (ООО) оквку № 24 "Динамо" | C19: =INDEX(Лист3!C:C,$A19)&"" -> м. Динамо | D19: =IFERROR(IFERROR(--(INDEX(Лист3!D:D,$A19)&""),--SUBSTITUTE(INDEX(Лист3!D:D,$A19)&"",".",",")),"") -> 77.7099 | E19: =IFERROR(IFERROR(--(INDEX(Лист3!E:E,$A19)&""),--SUBSTITUTE(INDEX(Лист3!E:E,$A19)&"",".",",")),"") ->  | F19: =INDEX(Лист3!F:F,$A19) -> Нет | G19: =INDEX(Лист3!G:G,$A19) -> 5001 | H19: =INDEX(Лист3!H:H,$A19) -> 09:32:58 | I19: =INDEX(Лист3!I:I,$A19) -> (8499)408 23 73Старый Петровско-Разумовский проезд, д. 1/23, стр. 1Динамо, Дмитровская
A20: 156 | B20: =INDEX(Лист3!B:B,$A20) -> КБ "ДС-Банк" (ООО) оквку № 24 "Динамо" | C20: =INDEX(Лист3!C:C,$A20)&"" -> м. Динамо | D20: =IFERROR(IFERROR(--(INDEX(Лист3!D:D,$A20)&""),--SUBSTITUTE(INDEX(Лист3!D:D,$A20)&"",".",",")),"") -> 77.7099 | E20: =IFERROR(IFERROR(--(INDEX(Лист3!E:E,$A20)&""),--SUBSTITUTE(INDEX(Лист3!E:E,$A20)&"",".",",")),"") ->  | F20: =INDEX(Лист3!F:F,$A20) -> Нет | G20: =INDEX(Лист3!G:G,$A20) -> 20001 | H20: =INDEX(Лист3!H:H,$A20) -> 09:32:58 | I20: =INDEX(Лист3!I:I,$A20) -> (8499)408 23 73Старый Петровско-Разумовский проезд, д. 1/23, стр. 1Динамо, Дмитровская
A21: 161 | B21: =INDEX(Лист3!B:B,$A21) -> ОАО КБ "ЮНИСТРИМ" оквку № 243 | C21: =INDEX(Лист3!C:C,$A21)&"" ->  | D21: =IFERROR(IFERROR(--(INDEX(Лист3!D:D,$A21)&""),--SUBSTITUTE(INDEX(Лист3!D:D,$A21)&"",".",",")),"") -> 77.5 | E21: =IFERROR(IFERROR(--(INDEX(Лист3!E:E,$A21)&""),--SUBSTITUTE(INDEX(Лист3!E:E,$A21)&"",".",",")),"") -> 79 | F21: =INDEX(Лист3!F:F,$A21) -> Нет | G21: =INDEX(Лист3!G:G,$A21) -> 15000 | H21: =INDEX(Лист3!H:H,$A21) -> 09:32:57 | I21: =INDEX(Лист3!I:I,$A21) -> (499)252 12 56; (8909)690 27 73ул. Красная Пресня, д. 44, стр. 1Улица 1905 года
A22: 166 | B22: =INDEX(Лист3!B:B,$A22) -> ПАО АКБ "Акцент" ОКВКУ "МОЖАЙСКОЕ 25" | C22: =INDEX(Лист3!C:C,$A22)&"" -> Можайск. шоссе 25 | D22: =IFERROR(IFERROR(--(INDEX(Лист3!D:D,$A22)&""),--SUBSTITUTE(INDEX(Лист3!D:D,$A22)&"",".",",")),"") -> 77.7099 | E22: =IFERROR(IFERROR(--(INDEX(Лист3!E:E,$A22)&""),--SUBSTITUTE(INDEX(Лист3!E:E,$A22)&"",".",",")),"") -> 78.995 | F22: =INDEX(Лист3!F:F,$A22) -> Нет | G22: =INDEX(Лист3!G:G,$A22) -> 10000 | H22: =INDEX(Лист3!H:H,$A22) -> 09:32:57 | I22: =INDEX(Лист3!I:I,$A22) -> (926)111 25 47; (985)970 38 68Можайское шоссе, д. 25Киевская (Арбатско-Покровская), Кунцевская (Филёвская), Славянский бульвар
A23: 171 | B23: =INDEX(Лист3!B:B,$A23) -> ПАО АКБ "Акцент" ОКВКУ "МОЖАЙСКОЕ 25" | C23: =INDEX(Лист3!C:C,$A23)&"" -> Можайск. шоссе 25 | D23: =IFERROR(IFERROR(--(INDEX(Лист3!D:D,$A23)&""),--SUBSTITUTE(INDEX(Лист3!D:D,$A23)&"",".",",")),"") -> 77.7099 | E23: =IFERROR(IFERROR(--(INDEX(Лист3!E:E,$A23)&""),--SUBSTITUTE(INDEX(Лист3!E:E,$A23)&"",".",",")),"") -> 78.995 | F23: =INDEX(Лист3!F:F,$A23) -> Нет | G23: =INDEX(Лист3!G:G,$A23) -> 100000 | H23: =INDEX(Лист3!H:H,$A23) -> 09:32:57 | I23: =INDEX(Лист3!I:I,$A23) -> (926)111 25 47; (985)970 38 68Можайское шоссе, д. 25Киевская (Арбатско-Покровская), Кунцевская (Филёвская), Славянский бульвар
A24: 176 | B24: =INDEX(Лист3!B:B,$A24) -> ОАО КБ "ЮНИСТРИМ" оквку № 279 | C24: =INDEX(Лист3!C:C,$A24)&"" -> м. Октябрьская | D24: =IFERROR(IFERROR(--(INDEX(Лист3!D:D,$A24)&""),--SUBSTITUTE(INDEX(Лист3!D:D,$A24)&"",".",",")),"") -> 77.5099 | E24: =IFERROR(IFERROR(--(INDEX(Лист3!E:E,$A24)&""),--SUBSTITUTE(INDEX(Лист3!E:E,$A24)&"",".",",")),"") -> 78.5915 | F24: =INDEX(Лист3!F:F,$A24) -> Нет | G24: =INDEX(Лист3!G:G,$A24) -> 1000 | H24: =INDEX(Лист3!H:H,$A24) -> 09:32:57 | I24: =INDEX(Лист3!I:I,$A24) -> (499)990 09 25; (916)837 70 03Калужская пл., д. 1, стр. 7Октябрьская (Кольцевая)
A25: 181 | B25: =INDEX(Лист3!B:B,$A25) -> ОАО КБ "ЮНИСТРИМ" оквку № 279 | C25: =INDEX(Лист3!C:C,$A25)&"" -> м. Октябрьская | D25: =IFERROR(IFERROR(--(INDEX(Лист3!D:D,$A25)&""),--SUBSTITUTE(INDEX(Лист3!D:D,$A25)&"",".",",")),"") -> 77.5099 | E25: =IFERROR(IFERROR(--(INDEX(Лист3!E:E,$A25)&""),--SUBSTITUTE(INDEX(Лист3!E:E,$A25)&"",".",",")),"") -> 78.5915 | F25: =INDEX(Лист3!F:F,$A25) -> Нет | G25: =INDEX(Лист3!G:G,$A25) -> 10000 | H25: =INDEX(Лист3!H:H,$A25) -> 09:32:57 | I25: =INDEX(Лист3!I:I,$A25) -> (499)990 09 25; (916)837 70 03Калужская пл., д. 1, стр. 7Октябрьская (Кольцевая)
A103: Показать выбранноеПоказать всеРаспечатать

Sheet Лист3
A1: count
B2: добавить в избранное | C2: сделать стартовой | D2: реклама | E2: rss | F2: новости партнеров
A3: РБКQuote
B4: расширенный поиск
A5: Фондовый рынок
A6: Валюты
A7: Котировки
A8: Проверка контрагентов
A9: Личный кабинет
A10: Авторизация
A11: Для получения доступа Вам необходимо зарегистрироваться.
A12: Если Вы уже являетесь пользователем системы, пожалуйста, введите логин и пароль.
A13: Логин
A14: Пароль | C14: Забыли пароль?
A15: Сохранить пароль
A16: Забыли пароль?
A17: Пожалуйста, введите логин и адрес электронной почты, который был указан при регистрации.
A18: E-mail
A19: Логин
A20: Изменить пароль
A21: Старый пароль
A22: Новый пароль
A23: Подтверждение
A25: Прайс-лист
A26: Специальное предложение
A27: Здесь могут быть ваши котировки
A28: ОАО КБ "ЮНИСТРИМ" оквку № 292 "Ленинский 95"
A29: (8495)729 44 51; (8499)132 20 03
A30: USD (покупка/продажа)
A31: 77.7/79.0
A32: EUR (покупка/продажа)
A33: 86.76/88.6
A34: ООО КБ "Металлург" ок ул. Ивана Бабушкина 16
A35: (8495)785 70 76
A36: АО АКБ "ЦентроКредит" ДО "Центральный"
A37: (495)780 32 28
A38: USD (покупка/продажа)
A39: 77.5/79.5
A40: EUR (покупка/продажа)
A41: 87.0/88.5
A42: АО БАНК "ТГБ" ДО "СЕРПУХОВСКИЙ ВАЛ"
A43: (8925)740 62 02; (8985)762 72 00; (8903)688 22 11
A44: USD (покупка/продажа)
A45: 78.05/78.99
A46: EUR (покупка/продажа)
A47: 87.06/88.55
A48: АО БАНК "ТГБ" оквку ЛЕНИНСКИЙ ПРОСПЕКТ д. 88 (24 ЧАСА) "ФАРАОН"
A49: (8967)197 66 77; (8499)131 70 22
A50: Курсы ЦБ | B50: Прогнозы | C50: Средние
C51: дата | D51: знач. | E51: изм.
B52: EUR ЦБ РФ | C52: 2016-02-09 | D52: 85.65 | E52: -1.06%
B53: USD ЦБ РФ | C53: 2016-02-09 | D53: 76.86 | E53: -0.62%
A54: Полная версия курсов ЦБ
B55: прогноз | C55: пот. абс.
A56: USD/RUB | B56: 70.0808 | C56: -8.3612
A57: EUR/RUB | B57: 72.4583 | C57: -15.1387
A58: Все валюты
A59: Все валюты
B60: дата | C60: пок. | D60: прод.
A61: Нал. EUR | B61: 09:30:00 | C61: 86.26 | D61: 88.37
A62: Нал. USD | B62: 09:30:00 | C62: 77.33 | D62: 78.89
A63: Данные на: 09.02.2016 | B63: Средние курсы
A64: Рынок наличной валюты | B64: Данные на
A65: Курсы валют | B65: Средние курсы | C65: Справочник банков | D65: Справочник валют | E65: Справка | F65: Регистрация
A66: Город | B66: ОбновитьКонвертерРаспечатать
A67: Поиск по метро
A68: Показать выбранноеПоказать всеВалюта
B69: Наименование банка | C69: Координаты | D69: Пок. | E69: Прод. | F69: Ком. | G69: Сумма. | H69: Время. | I69: Дополнительная информация
B71: ООО КБ "ФПК" оквку № 24 "Семёновская" | C71: м. Семёновская | D71: 77.1000 | E71: 79.0000 | F71: Нет | G71: 10000 | H71: 09:33:01 | I71: (8495)365 02 00; (8967)248 88 32ул. Щербаковская, д. 5Партизанская, Семёновская
I72: Адрес: ул. Щербаковская, д. 5
I73: Метро: Партизанская, Семёновская
I74: Телефон: (8495)365 02 00; (8967)248 88 32
I75: Комиссия: Нет.
B76: ООО КБ "ФПК" оквку № 24 "Семёновская" | C76: м. Семёновская | D76: 77.1000 | E76: 79.0000 | F76: Нет | G76: 20000 | H76: 09:33:01 | I76: (8495)365 02 00; (8967)248 88 32ул. Щербаковская, д. 5Партизанская, Семёновская
I77: Адрес: ул. Щербаковская, д. 5
I78: Метро: Партизанская, Семёновская
I79: Телефон: (8495)365 02 00; (8967)248 88 32
I80: Комиссия: Нет.
B81: АО БАНК "ТГБ" оквку "м. Кропоткинская, Гоголевский бульвар, д. 2" | C81: м. Кропоткинская | D81: 77.5099 | E81: 78.1401 | F81: Нет | G81: 1000 | H81: 09:33:00 | I81: (8963)999 11 68; (8963)999 11 83Бульвар Гоголевский, д. 2/18/1, стр. 3Кропоткинская
I82: Адрес: Бульвар Гоголевский, д. 2/18/1, стр. 3
I83: Метро: Кропоткинская
I84: Телефон: (8963)999 11 68; (8963)999 11 83
I85: Комиссия: Нет.
B86: АО БАНК "ТГБ" оквку "м. Кропоткинская, Гоголевский бульвар, д. 2" | C86: м. Кропоткинская | D86: 77.5099 | E86: 78.1401 | F86: Нет | G86: 10000 | H86: 09:33:00 | I86: (8963)999 11 68; (8963)999 11 83Бульвар Гоголевский, д. 2/18/1, стр. 3Кропоткинская
I87: Адрес: Бульвар Гоголевский, д. 2/18/1, стр. 3
I88: Метро: Кропоткинская
I89: Телефон: (8963)999 11 68; (8963)999 11 83
I90: Комиссия: Нет.
B91: АО БАНК "ТГБ" оквку "м. Кропоткинская, Гоголевский бульвар, д. 2" | C91: м. Кропоткинская | D91: 77.5099 | E91: 78.1401 | F91: Нет | G91: 30000 | H91: 09:33:00 | I91: (8963)999 11 68; (8963)999 11 83Бульвар Гоголевский, д. 2/18/1, стр. 3Кропоткинская
I92: Адрес: Бульвар Гоголевский, д. 2/18/1, стр. 3
I93: Метро: Кропоткинская
I94: Телефон: (8963)999 11 68; (8963)999 11 83
I95: Комиссия: Нет.
B96: КБ "РИАЛ-КРЕДИТ" (ООО) оквку "Большая Тульская" | C96: м-н "12 месяцев" | D96: 77.5100 | E96: 78.7000 | F96: Нет | G96: 10000 | H96: 09:33:00 | I96: (916)759 09 46; (495)434 97 79ул. Большая Тульская, д. 2
I97: Адрес: ул. Большая Тульская, д. 2
I98: Метро:
I99: Телефон: (916)759 09 46; (495)434 97 79
I100: Комиссия: Нет.
B101: КБ "РИАЛ-КРЕДИТ" (ООО) оквку "Большая Тульская" | C101: м-н "12 месяцев" | D101: 77.5100 | E101: 78.7000 | F101: Нет | G101: 20000 | H101: 09:33:00 | I101: (916)759 09 46; (495)434 97 79ул. Большая Тульская, д. 2
I102: Адрес: ул. Большая Тульская, д. 2
I103: Метро:
I104: Телефон: (916)759 09 46; (495)434 97 79
I105: Комиссия: Нет.
B106: ООО ИКБ "ЛОГОС" оквку "Ленинский 66" | D106: 77.5000 | E106: 78.5000 | F106: Нет | G106: 1000 | H106: 09:32:59 | I106: (499)133 43 45Ленинский проспект, д. 66Академическая, Университет
I107: Адрес: Ленинский проспект, д. 66
I108: Метро: Академическая, Университет
I109: Телефон: (499)133 43 45
I110: Комиссия: Нет.
B111: ООО ИКБ "ЛОГОС" оквку "Ленинский 66" | D111: 77.7000 | E111: 78.5000 | F111: Нет | G111: 10000 | H111: 09:32:59 | I111: (499)133 43 45Ленинский проспект, д. 66Академическая, Университет
I112: Адрес: Ленинский проспект, д. 66
I113: Метро: Академическая, Университет
I114: Телефон: (499)133 43 45
I115: Комиссия: Нет.
B116: ООО ИКБ "ЛОГОС" оквку "Ленинский 66" | D116: 77.7000 | E116: 78.5000 | F116: Нет | G116: 100000 | H116: 09:32:59 | I116: (499)133 43 45Ленинский проспект, д. 66Академическая, Университет
I117: Адрес: Ленинский проспект, д. 66
I118: Метро: Академическая, Университет
I119: Телефон: (499)133 43 45
I120: Комиссия: Нет.
B121: АО "Гринкомбанк" оквку "Медведково" | C121: м. Медведково | D121: 77.7099 | F121: Нет | G121: 5001 | H121: 09:32:58 | I121: (8985)430 04 07ул. Широкая, владение 11АМедведково
I122: Адрес: ул. Широкая, владение 11А
I123: Метро: Медведково
I124: Телефон: (8985)430 04 07
I125: Комиссия: Нет.
B126: АО "Гринкомбанк" оквку "Медведково" | C126: м. Медведково | D126: 77.7099 | F126: Нет | G126: 20000 | H126: 09:32:58 | I126: (8985)430 04 07ул. Широкая, владение 11АМедведково
I127: Адрес: ул. Широкая, владение 11А
I128: Метро: Медведково
I129: Телефон: (8985)430 04 07
I130: Комиссия: Нет.
B131: КБ "РИАЛ-КРЕДИТ" (ООО) оквку "Митинская" | D131: 77.7000 | E131: 78.2000 | F131: Нет | G131: 1000 | H131: 09:32:58 | I131: (8925)929 61 33; (8925)929 61 33ул. Митинская, дом 36, корп. 2Митино
I132: Адрес: ул. Митинская, дом 36, корп. 2
I133: Метро: Митино
I134: Телефон: (8925)929 61 33; (8925)929 61 33
I135: Комиссия: Нет.
B136: КБ "РИАЛ-КРЕДИТ" (ООО) оквку "Митинская" | D136: 77.7000 | E136: 78.2000 | F136: Нет | G136: 5000 | H136: 09:32:58 | I136: (8925)929 61 33; (8925)929 61 33ул. Митинская, дом 36, корп. 2Митино
I137: Адрес: ул. Митинская, дом 36, корп. 2
I138: Метро: Митино
I139: Телефон: (8925)929 61 33; (8925)929 61 33
I140: Комиссия: Нет.
B141: ООО КБ "Стар Альянс" оквку № 20 | D141: 77.2000 | E141: 79.3000 | F141: Нет | G141: 10000 | H141: 09:32:58 | I141: (8968)771 42 42; (8968)771 43 43ул. Маршала Бирюзова, д. 16Октябрьское поле
I142: Адрес: ул. Маршала Бирюзова, д. 16
I143: Метро: Октябрьское поле
I144: Телефон: (8968)771 42 42; (8968)771 43 43
I145: Комиссия: Нет.
B146: ООО КБ "Стар Альянс" оквку № 20 | D146: 77.2000 | E146: 79.3000 | F146: Нет | G146: 50000 | H146: 09:32:58 | I146: (8968)771 42 42; (8968)771 43 43ул. Маршала Бирюзова, д. 16Октябрьское поле
I147: Адрес: ул. Маршала Бирюзова, д. 16
I148: Метро: Октябрьское поле
I149: Телефон: (8968)771 42 42; (8968)771 43 43
I150: Комиссия: Нет.
B151: КБ "ДС-Банк" (ООО) оквку № 24 "Динамо" | C151: м. Динамо | D151: 77.7099 | F151: Нет | G151: 5001 | H151: 09:32:58 | I151: (8499)408 23 73Старый Петровско-Разумовский проезд, д. 1/23, стр. 1Динамо, Дмитровская
I152: Адрес: Старый Петровско-Разумовский проезд, д. 1/23, стр. 1
I153: Метро: Динамо, Дмитровская
I154: Телефон: (8499)408 23 73
I155: Комиссия: Нет.
B156: КБ "ДС-Банк" (ООО) оквку № 24 "Динамо" | C156: м. Динамо | D156: 77.7099 | F156: Нет | G156: 20001 | H156: 09:32:58 | I156: (8499)408 23 73Старый Петровско-Разумовский проезд, д. 1/23, стр. 1Динамо, Дмитровская
I157: Адрес: Старый Петровско-Разумовский проезд, д. 1/23, стр. 1
I158: Метро: Динамо, Дмитровская
I159: Телефон: (8499)408 23 73
I160: Комиссия: Нет.
B161: ОАО КБ "ЮНИСТРИМ" оквку № 243 | D161: 77.5000 | E161: 79.0000 | F161: Нет | G161: 15000 | H161: 09:32:57 | I161: (499)252 12 56; (8909)690 27 73ул. Красная Пресня, д. 44, стр. 1Улица 1905 года
I162: Адрес: ул. Красная Пресня, д. 44, стр. 1
I163: Метро: Улица 1905 года
I164: Телефон: (499)252 12 56; (8909)690 27 73
I165: Комиссия: Нет.
B166: ПАО АКБ "Акцент" ОКВКУ "МОЖАЙСКОЕ 25" | C166: Можайск. шоссе 25 | D166: 77.7099 | E166: 78.9950 | F166: Нет | G166: 10000 | H166: 09:32:57 | I166: (926)111 25 47; (985)970 38 68Можайское шоссе, д. 25Киевская (Арбатско-Покровская), Кунцевская (Филёвская), Славянский бульвар
I167: Адрес: Можайское шоссе, д. 25
I168: Метро: Киевская (Арбатско-Покровская), Кунцевская (Филёвская), Славянский бульвар
I169: Телефон: (926)111 25 47; (985)970 38 68
I170: Комиссия: Нет.
B171: ПАО АКБ "Акцент" ОКВКУ "МОЖАЙСКОЕ 25" | C171: Можайск. шоссе 25 | D171: 77.7099 | E171: 78.9950 | F171: Нет | G171: 100000 | H171: 09:32:57 | I171: (926)111 25 47; (985)970 38 68Можайское шоссе, д. 25Киевская (Арбатско-Покровская), Кунцевская (Филёвская), Славянский бульвар
I172: Адрес: Можайское шоссе, д. 25
I173: Метро: Киевская (Арбатско-Покровская), Кунцевская (Филёвская), Славянский бульвар
I174: Телефон: (926)111 25 47; (985)970 38 68
I175: Комиссия: Нет.
B176: ОАО КБ "ЮНИСТРИМ" оквку № 279 | C176: м. Октябрьская | D176: 77.5099 | E176: 78.5915 | F176: Нет | G176: 1000 | H176: 09:32:57 | I176: (499)990 09 25; (916)837 70 03Калужская пл., д. 1, стр. 7Октябрьская (Кольцевая)
I177: Адрес: Калужская пл., д. 1, стр. 7
I178: Метро: Октябрьская (Кольцевая)
I179: Телефон: (499)990 09 25; (916)837 70 03
I180: Комиссия: Нет.
B181: ОАО КБ "ЮНИСТРИМ" оквку № 279 | C181: м. Октябрьская | D181: 77.5099 | E181: 78.5915 | F181: Нет | G181: 10000 | H181: 09:32:57 | I181: (499)990 09 25; (916)837 70 03Калужская пл., д. 1, стр. 7Октябрьская (Кольцевая)
I182: Адрес: Калужская пл., д. 1, стр. 7
I183: Метро: Октябрьская (Кольцевая)
I184: Телефон: (499)990 09 25; (916)837 70 03
I185: Комиссия: Нет.
B186: ОАО КБ "ЮНИСТРИМ" оквку № 279 | C186: м. Октябрьская | D186: 77.5099 | E186: 78.5915 | F186: Нет | G186: 50000 | H186: 09:32:57 | I186: (499)990 09 25; (916)837 70 03Калужская пл., д. 1, стр. 7Октябрьская (Кольцевая)
I187: Адрес: Калужская пл., д. 1, стр. 7
I188: Метро: Октябрьская (Кольцевая)
I189: Телефон: (499)990 09 25; (916)837 70 03
I190: Комиссия: Нет.
B191: КБ "РИАЛ-КРЕДИТ" (ООО) оквку "Маршала Василевского" | C191: м-н "ОЛИВЬЕ" | D191: 77.5100 | E191: 78.5000 | F191: Нет | G191: 10000 | H191: 09:32:57 | I191: (8499)193 57 50; (8915)315 21 61ул. Маршала Василевского, дом 17Щукинская
I192: Адрес: ул. Маршала Василевского, дом 17
I193: Метро: Щукинская
I194: Телефон: (8499)193 57 50; (8915)315 21 61
I195: Комиссия: Нет.
B196: КБ "РИАЛ-КРЕДИТ" (ООО) оквку "Маршала Василевского" | C196: м-н "ОЛИВЬЕ" | D196: 77.5100 | E196: 78.5000 | F196: Нет | G196: 20000 | H196: 09:32:57 | I196: (8499)193 57 50; (8915)315 21 61ул. Маршала Василевского, дом 17Щукинская
I197: Адрес: ул. Маршала Василевского, дом 17
I198: Метро: Щукинская
I199: Телефон: (8499)193 57 50; (8915)315 21 61
I200: Комиссия: Нет.
B201: АО БАНК "ТГБ" ДО "СЕРПУХОВСКИЙ ВАЛ" | C201: м. Шаболовская | D201: 77.8500 | E201: 79.0500 | F201: Нет | G201: 10000 | H201: 09:32:56 | I201: (8925)740 62 02; (8985)762 72 00; (8903)688 22 11ул. Серпуховский Вал, д. 26Тульская, Шаболовская
I202: Адрес: ул. Серпуховский Вал, д. 26
... 235 more rows
